fUST/lending_fUST_20240902
["ID","MTS","AMOUNT","RATE_DAILY","PERIOD"]
[336855630,1725215450450,-1532.27042263,0.0002513,7]
[336855631,1725215450460,-1532.27042263,0.0002513,7]
[336855632,1725215450470,-1532.27042263,0.0002513,7]
[336855633,1725215450479,-1532.27042263,0.0002513,7]
[336855634,1725215450489,-1532.27042263,0.0002513,7]
[336855635,1725215450500,-1532.27042263,0.0002513,7]
[336855636,1725215450510,-1532.27042263,0.0002513,7]
[336855637,1725215450520,-1532.27042263,0.0002513,7]
[336855638,1725215450530,-1532.27042263,0.0002513,7]
[336855639,1725215450539,-1532.27042263,0.0002513,7]
[336855640,1725215450551,-1532.27042263,0.0002513,7]
[336855641,1725215450564,-1532.27042263,0.0002513,7]
[336855642,1725215450574,-1532.27042263,0.0002513,7]
[336855643,1725215450583,-1532.27042263,0.0002513,7]
[336855644,1725215450593,-1532.27042263,0.0002513,7]
[336855645,1725215450605,-1532.27042263,0.0002513,7]
[336855646,1725215450615,-385.46758362,0.0002513,7]
[336855647,1725215450627,-385.46758362,0.0002513,7]
[336855648,1725215450638,-385.46758362,0.0002513,7]
[336855649,1725215450650,-385.46758362,0.0002513,7]
[336855650,1725215450660,-385.46758362,0.0002513,7]
[336855651,1725215450672,-385.46758362,0.0002513,7]
[336855652,1725215450681,-385.46758362,0.0002513,7]
[336855653,1725215450691,-385.46758362,0.0002513,7]
[336855654,1725215450700,-385.46758362,0.0002513,7]
[336855655,1725215450710,-385.46758362,0.0002513,7]
[336855656,1725215450720,-385.46758362,0.0002513,7]
[336855657,1725215450730,-385.46758362,0.0002513,7]
[336855658,1725215450740,-385.46758362,0.0002513,7]
[336855659,1725215450750,-385.46758362,0.0002513,7]
[336855660,1725215450760,-385.46758362,0.0002513,7]
[336855661,1725215450770,-385.46758362,0.0002513,7]
[336855662,1725215450780,-385.46758362,0.0002513,7]
[336855663,1725215450790,-385.46758362,0.0002513,7]
[336855664,1725215450800,-385.46758362,0.0002513,7]
[336855665,1725215450810,-385.96,0.0002513,7]
[336855666,1725215450820,-1541.94533448,0.0002513,7]
[336855667,1725215450830,-1541.94533448,0.0002513,7]
[336855668,1725215450840,-1541.94533448,0.0002513,7]
[336855669,1725215450850,-1541.94533448,0.0002513,7]
[336855670,1725215450860,-1541.94533448,0.0002513,7]
[336855671,1725215450871,-1541.94533448,0.0002513,7]
[336855672,1725215450881,-1541.94533448,0.0002513,7]
[336855673,1725215450891,-1541.94533448,0.0002513,7]
[336855674,1725215450901,-1541.94533448,0.0002513,7]
[336855675,1725215450914,-1541.94533448,0.0002513,7]
[336855676,1725215450925,-1541.94533448,0.0002513,7]
[336855677,1725215450935,-1541.94533448,0.0002513,7]
[336855678,1725215450944,-1541.94533448,0.0002513,7]
[336855679,1725215450955,-1541.94533448,0.0002513,7]
[336855680,1725215450964,-1541.94533448,0.0002513,7]
[336855681,1725215450974,-1541.94533448,0.0002513,7]
[336855682,1725215450984,-1541.94533448,0.0002513,7]
[336855683,1725215450994,-1532.27042263,0.0002514,7]
[336855684,1725215451003,-1541.94533448,0.0002514,7]
[336855685,1725215451015,-6865.5135267,0.00025195,3]
[336855686,1725215451024,-500.0,0.00025199,2]
[336855687,1725215451035,-150.112233,0.000252,9]
[336855688,1725215451046,-150.112233,0.000252,6]
[336855689,1725215451056,-3000.0,0.000252,2]
[336855690,1725215451066,-3000.0,0.000252,2]
[336855691,1725215451076,-164.41431802,0.00025204,2]
[336855692,1725215451085,-693.91343955,0.00025204,2]
[336855693,1725215451095,-500.0,0.00025204,2]
[336855694,1725215451104,-500.0,0.00025204,2]
[336855695,1725215451114,-500.0,0.00025204,2]
[336855696,1725215451124,-500.0,0.00025204,2]
[336855697,1725215451133,-500.0,0.00025204,2]
[336855698,1725215451143,-500.0,0.00025204,2]
[336855699,1725215451153,-500.0,0.00025205,2]
[336855700,1725215451163,-500.0,0.00025205,2]
[336855701,1725215451173,-500.0,0.00025205,2]
[336855702,1725215451183,-500.0,0.00025205,2]
[336855703,1725215451192,-500.0,0.00025205,2]
[336855704,1725215451201,-500.0,0.00025205,2]
[336855705,1725215451211,-500.0,0.00025205,2]
[336855706,1725215451220,-500.0,0.00025205,2]
[336855707,1725215451230,-500.0,0.00025205,2]
[336855708,1725215451240,-430.54722159,0.00025205,2]
[336855709,1725215451250,-500.0,0.00025205,2]
[336855710,1725215451259,-500.0,0.00025205,2]
[336855711,1725215451269,-500.0,0.00025205,2]
[336855712,1725215451279,-203.88133382,0.00025205,2]
[336855713,1725215451289,-500.0,0.00025205,2]
[336855714,1725215451299,-869.91,0.00025205,2]
[336855715,1725215451309,-500.0,0.00025205,2]
[336855716,1725215451319,-445.34900436,0.00025205,2]
[336855717,1725215451328,-500.0,0.00025205,2]
[336855718,1725215451338,-500.0,0.00025205,2]
[336855719,1725215451348,-500.0,0.00025205,2]
[336855720,1725215451358,-500.0,0.00025205,2]
[336855721,1725215451367,-500.0,0.00025205,2]
[336855722,1725215451377,-500.0,0.00025205,2]
[336855723,1725215451386,-500.0,0.00025205,2]
[336855724,1725215451395,-500.0,0.00025205,2]
[336855725,1725215451405,-500.0,0.00025205,2]
[336855726,1725215451417,-500.0,0.00025205,2]
[336855727,1725215451428,-500.0,0.00025205,2]
[336855728,1725215451437,-500.0,0.00025205,2]
[336855729,1725215451449,-500.0,0.00025205,2]
[336855730,1725215451460,-500.0,0.00025205,2]
[336855731,1725215451470,-500.0,0.00025205,2]
[336855732,1725215451479,-500.0,0.00025205,2]
[336855733,1725215451489,-500.0,0.00025205,2]
[336855734,1725215451499,-500.0,0.00025205,2]
[336855735,1725215451509,-502.96019169,0.00025205,2]
[336855736,1725215451519,-500.0,0.00025205,2]
[336855737,1725215451529,-500.0,0.00025205,2]
[336855738,1725215451539,-500.0,0.00025205,2]
[336855739,1725215451550,-646.6,0.00025205,2]
[336855740,1725215451566,-500.0,0.00025205,2]
[336855741,1725215451576,-784.76,0.00025205,2]
[336855742,1725215451586,-500.0,0.00025205,2]
[336855743,1725215451596,-500.0,0.00025205,2]
[336855744,1725215451606,-687.81,0.00025205,2]
[336855745,1725215451616,-500.0,0.00025205,2]
[336855746,1725215451626,-500.0,0.00025205,2]
[336855747,1725215451636,-504.87629829,0.00025205,2]
[336855748,1725215451649,-500.0,0.00025205,2]
[336855749,1725215451660,-952.17,0.00025205,2]
[336855750,1725215451670,-500.0,0.00025205,2]
[336855751,1725215451680,-500.0,0.00025205,2]
[336855752,1725215451691,-709.86,0.00025205,2]
[336855753,1725215451700,-500.0,0.00025205,2]
[336855754,1725215451711,-500.0,0.00025205,2]
[336855755,1725215451720,-500.0,0.00025205,2]
[336855756,1725215451731,-752.49,0.00025205,2]
[336855757,1725215451741,-1121.6,0.00025205,2]
[336855758,1725215451750,-151.0,0.00025205,7]
[336855759,1725215451759,-654.76,0.00025205,2]
[336855760,1725215451768,-500.0,0.00025205,2]
[336855761,1725215451778,-500.0,0.00025205,2]
[336855762,1725215451787,-500.0,0.00025205,2]
[336855763,1725215451911,-322.92382477,0.00025205,2]
[336855764,1725215451926,-500.0,0.00025205,2]
[336855765,1725215451936,-500.0,0.00025205,2]
[336855766,1725215451946,-500.0,0.00025205,2]
[336855767,1725215451957,-500.0,0.00025205,2]
[336855768,1725215451966,-500.0,0.00025205,2]
[336855769,1725215451976,-500.0,0.00025205,2]
[336855770,1725215451986,-500.0,0.00025205,2]
[336855771,1725215451996,-562.94,0.00025205,2]
[336855772,1725215452006,-500.0,0.00025205,2]
[336855773,1725215452016,-500.0,0.00025205,2]
[336855774,1725215452026,-500.0,0.00025205,2]
[336855775,1725215452036,-935.11,0.00025205,2]
[336855776,1725215452046,-500.0,0.00025205,2]
[336855777,1725215452055,-500.0,0.00025205,2]
[336855778,1725215452065,-500.0,0.00025205,2]
[336855779,1725215452074,-500.0,0.00025205,2]
[336855780,1725215452084,-500.0,0.00025205,2]
[336855781,1725215452094,-500.0,0.00025205,2]
[336855782,1725215452103,-500.0,0.00025205,2]
[336855783,1725215452113,-3222.16,0.00025205,2]
[336855784,1725215452122,-500.0,0.00025205,2]
[336855785,1725215452132,-500.0,0.00025205,2]
[336855786,1725215452142,-500.0,0.00025205,2]
[336855787,1725215452151,-673.69,0.00025205,2]
[336855788,1725215452161,-500.0,0.00025205,2]
[336855789,1725215452175,-500.0,0.00025205,2]
[336855790,1725215452184,-667.92,0.00025205,2]
[336855791,1725215452194,-570.65085697,0.00025205,2]
[336855792,1725215452203,-190.81037652,0.00025205,2]
[336855793,1725215452213,-500.0,0.00025205,2]
[336855794,1725215452223,-1213.8,0.00025205,2]
[336855795,1725215452233,-758.25,0.00025205,2]
[336855796,1725215452243,-500.0,0.00025205,2]
[336855797,1725215452253,-500.0,0.00025205,2]
[336855798,1725215452262,-625.34,0.00025205,2]
[336855799,1725215452271,-500.0,0.00025205,2]
[336855800,1725215452281,-500.0,0.00025205,2]
[336855801,1725215452291,-500.0,0.00025205,2]
[336855802,1725215452301,-500.0,0.00025205,2]
[336855803,1725215452311,-683.92,0.00025205,2]
[336855804,1725215452321,-607.62,0.00025205,2]
[336855805,1725215452330,-500.0,0.00025205,2]
[336855806,1725215452339,-674.08,0.00025205,2]
[336855807,1725215452349,-500.0,0.00025205,2]
[336855808,1725215452358,-500.0,0.00025205,2]
[336855809,1725215452369,-533.86,0.00025205,2]
[336855810,1725215452378,-500.0,0.00025205,2]
[336855811,1725215452387,-500.0,0.00025205,2]
[336855812,1725215452396,-500.0,0.00025205,2]
[336855813,1725215452406,-500.0,0.00025205,2]
[336855814,1725215452418,-500.0,0.00025205,2]
[336855815,1725215452428,-500.0,0.00025205,2]
[336855816,1725215452438,-500.0,0.00025205,2]
[336855817,1725215452447,-500.0,0.00025205,2]
[336855818,1725215452458,-500.0,0.00025205,2]
[336855819,1725215452467,-500.0,0.00025205,2]
[336855820,1725215452477,-500.0,0.00025205,2]
[336855821,1725215452487,-500.0,0.00025205,2]
[336855822,1725215452497,-662.7,0.00025205,2]
[336855823,1725215452507,-640.46,0.00025205,2]
[336855824,1725215452516,-500.0,0.00025205,2]
[336855825,1725215452526,-500.0,0.00025205,2]
[336855826,1725215452535,-500.0,0.00025205,2]
[336855827,1725215452545,-500.0,0.00025205,2]
[336855828,1725215452559,-503.7723864,0.00025205,2]
[336855829,1725215452572,-285.79563702,0.00025205,2]
[336855830,1725215452582,-500.0,0.00025205,2]
[336855831,1725215452591,-500.0,0.00025205,2]
[336855832,1725215452602,-500.0,0.00025205,2]
[336855833,1725215452611,-1209.49,0.00025205,2]
[336855834,1725215452620,-500.0,0.00025205,2]
[336855835,1725215452630,-1015.74,0.00025205,2]
[336855836,1725215452641,-751.25,0.00025205,2]
[336855837,1725215452653,-772.03,0.00025205,2]
[336855838,1725215452665,-555.28,0.00025205,2]
[336855839,1725215452675,-1110.68,0.00025205,2]
[336855840,1725215452684,-638.573695,0.00025205,2]
[336855841,1725215452694,-500.0,0.00025205,2]
[336855842,1725215452703,-1758.27,0.00025205,2]
[336855843,1725215452712,-500.0,0.00025205,2]
[336855844,1725215452722,-5517.21,0.00025205,2]
[336855845,1725215452732,-500.0,0.00025205,2]
[336855846,1725215452742,-500.0,0.00025205,2]
[336855847,1725215452752,-2240.32,0.00025205,2]
[336855848,1725215452761,-984.79,0.00025205,2]
[336855849,1725215452770,-500.0,0.00025205,2]
[336855850,1725215452780,-1783.27,0.00025205,2]
[336855851,1725215452790,-500.0,0.00025205,2]
[336855852,1725215452799,-500.0,0.00025205,2]
[336855853,1725215452808,-2629.02,0.00025205,2]
[336855854,1725215452818,-1629.43,0.00025205,2]
[336855855,1725215452828,-506.33,0.00025205,2]
[336855856,1725215452837,-1242.97,0.00025205,2]
[336855857,1725215452848,-210.08134758,0.00025205,2]
[336855858,1725215452858,-500.0,0.00025205,2]
[336855859,1725215452867,-1079.32,0.00025205,2]
[336855860,1725215452877,-500.0,0.00025205,2]
[336855861,1725215452888,-500.0,0.00025205,2]
[336855862,1725215452897,-500.0,0.00025205,2]
[336855863,1725215452907,-721.57,0.00025205,2]
[336855864,1725215452920,-1619.62,0.00025205,2]
[336855865,1725215452929,-585.54,0.00025205,2]
[336855866,1725215452939,-1470.2,0.00025205,2]
[336855867,1725215452948,-888.35,0.00025205,2]
[336855868,1725215452957,-500.0,0.00025205,2]
[336855869,1725215452967,-500.0,0.00025205,2]
[336855870,1725215452976,-500.0,0.00025205,2]
[336855871,1725215452986,-527.65,0.00025205,2]
[336855872,1725215452995,-1076.25,0.00025205,2]
[336855873,1725215453005,-2023.14,0.00025205,2]
[336855874,1725215453015,-2074.7,0.00025205,2]
[336855875,1725215453026,-500.0,0.00025205,2]
[336855876,1725215453036,-1359.2,0.00025205,2]
[336855877,1725215453045,-594.96,0.00025205,2]
[336855878,1725215453054,-1295.16,0.00025205,2]
[336855879,1725215453063,-500.0,0.00025205,2]
[336855880,1725215453073,-500.0,0.00025205,2]
[336855881,1725215453082,-1896.14,0.00025205,2]
[336855882,1725215453092,-500.0,0.00025205,2]
[336855883,1725215453101,-500.0,0.00025205,2]
[336855884,1725215453111,-742.76,0.00025205,2]
[336855885,1725215453120,-544.43,0.00025205,2]
[336855886,1725215453130,-500.0,0.00025205,2]
[336855887,1725215453139,-469.02691979,0.00025205,2]
[336855888,1725215453148,-500.0,0.00025205,2]
[336855889,1725215453158,-500.0,0.00025205,2]
[336855890,1725215453170,-500.0,0.00025205,2]
[336855891,1725215453179,-330.146762,0.00025205,7]
[336855892,1725215453188,-500.0,0.00025205,2]
[336855893,1725215453198,-1704.95,0.00025205,2]
[336855894,1725215453207,-330.146762,0.00025205,7]
[336855895,1725215453217,-2275.91,0.00025205,2]
[336855896,1725215453226,-763.9,0.00025205,2]
[336855897,1725215453235,-500.0,0.00025205,2]
[336855898,1725215453245,-500.0,0.00025205,2]
[336855899,1725215453254,-500.0,0.00025205,2]
[336855900,1725215453264,-500.0,0.00025205,2]
[336855901,1725215453274,-704.69,0.00025205,2]
[336855902,1725215453283,-13304.05,0.00025205,2]
[336855903,1725215453292,-500.0,0.00025205,2]
[336855904,1725215453302,-500.0,0.00025205,2]
[336855905,1725215453312,-500.0,0.00025205,2]
[336855906,1725215453322,-699.49,0.00025205,2]
[336855907,1725215453331,-2354.18,0.00025205,2]
[336855908,1725215453341,-500.0,0.00025205,2]
[336855909,1725215453350,-1717.48,0.00025205,2]
[336855910,1725215453359,-1650.55,0.00025205,2]
[336855911,1725215453369,-1724.01,0.00025205,2]
[336855912,1725215453379,-500.0,0.00025205,2]
[336855913,1725215453389,-500.0,0.00025205,2]
[336855914,1725215453398,-2159.25,0.00025205,2]
[336855915,1725215453408,-500.0,0.00025205,2]
[336855916,1725215453420,-1096.4,0.00025205,2]
[336855917,1725215453430,-500.0,0.00025205,2]
[336855918,1725215453440,-779.61,0.00025205,2]
[336855919,1725215453450,-500.0,0.00025205,2]
[336855920,1725215453460,-1346.63,0.00025205,2]
[336855921,1725215453469,-2785.55,0.00025205,2]
[336855922,1725215453478,-500.0,0.00025205,2]
[336855923,1725215453488,-710.04,0.00025205,2]
[336855924,1725215453497,-500.0,0.00025205,2]
[336855925,1725215453507,-500.0,0.00025205,2]
[336855926,1725215453516,-500.0,0.00025205,2]
[336855927,1725215453526,-228.00972099,0.00025205,2]
[336855928,1725215453535,-694.54,0.00025205,2]
[336855929,1725215453545,-500.0,0.00025205,2]
[336855930,1725215453559,-651.91,0.00025205,2]
[336855931,1725215453568,-680.75,0.00025205,2]
[336855932,1725215453577,-1217.07,0.00025205,2]
[336855933,1725215453587,-1570.55,0.00025205,2]
[336855934,1725215453596,-1068.74,0.00025205,2]
[336855935,1725215453606,-732.75,0.00025205,2]
[336855936,1725215453615,-1050.97,0.00025205,2]
[336855937,1725215453624,-500.0,0.00025205,2]
[336855938,1725215453637,-500.0,0.00025205,2]
[336855939,1725215453649,-500.0,0.00025205,2]
[336855940,1725215453658,-500.0,0.00025205,2]
[336855941,1725215453671,-500.0,0.00025205,2]
[336855942,1725215453687,-1409.27,0.00025205,2]
[336855943,1725215453696,-500.0,0.00025205,2]
[336855944,1725215453705,-1652.45,0.00025205,2]
[336855945,1725215453715,-1487.02,0.00025205,2]
[336855946,1725215453724,-1542.99,0.00025205,2]
[336855947,1725215453733,-500.0,0.00025205,2]
[336855948,1725215453743,-828.44,0.00025205,2]
[336855949,1725215453752,-672.62,0.00025205,2]
[336855950,1725215453762,-1617.74,0.00025205,2]
[336855951,1725215453771,-500.0,0.00025205,2]
[336855952,1725215453781,-500.0,0.00025205,2]
[336855953,1725215453792,-569.38,0.00025205,2]
[336855954,1725215453802,-1024.29,0.00025205,2]
[336855955,1725215453812,-1643.79,0.00025205,2]
[336855956,1725215453821,-1231.01,0.00025205,2]
[336855957,1725215453830,-500.0,0.00025205,2]
[336855958,1725215453841,-629.98,0.00025205,2]
[336855959,1725215453851,-500.0,0.00025205,2]
[336855960,1725215453861,-2625.78,0.00025205,2]
[336855961,1725215453870,-500.0,0.00025205,2]
[336855962,1725215453879,-7723.39,0.00025205,2]
[336855963,1725215453889,-1234.03,0.00025205,2]
[336855964,1725215453898,-740.27,0.00025205,2]
[336855965,1725215453907,-500.0,0.00025205,2]
[336855966,1725215453922,-1688.4,0.00025205,2]
[336855967,1725215453931,-552.21,0.00025205,2]
[336855968,1725215453940,-1856.33,0.00025205,2]
[336855969,1725215453949,-568.62,0.00025205,2]
[336855970,1725215453959,-1918.56,0.00025205,2]
[336855971,1725215453968,-500.0,0.00025205,2]
[336855972,1725215453978,-3731.96,0.00025205,2]
[336855973,1725215453987,-1279.31,0.00025205,2]
[336855974,1725215453996,-515.86,0.00025205,2]
[336855975,1725215454006,-705.74,0.00025205,2]
[336855976,1725215454015,-1287.24,0.00025205,2]
[336855977,1725215454025,-500.0,0.00025205,2]
[336855978,1725215454034,-500.0,0.00025205,2]
[336855979,1725215454044,-2636.96,0.00025205,2]
[336855980,1725215454053,-1962.73,0.00025205,2]
[336855981,1725215454063,-500.0,0.00025205,2]
[336855982,1725215454072,-265.25486729,0.00025205,2]
[336855983,1725215454082,-500.0,0.00025205,2]
[336855984,1725215454091,-500.0,0.00025205,2]
[336855985,1725215454100,-500.0,0.00025205,2]
[336855986,1725215454110,-1603.59,0.00025205,2]
[336855987,1725215454119,-1374.92,0.00025205,2]
[336855988,1725215454128,-500.0,0.00025205,2]
[336855989,1725215454138,-500.0,0.00025205,2]
[336855990,1725215454147,-500.0,0.00025205,2]
[336855991,1725215454157,-500.0,0.00025205,2]
[336855992,1725215454175,-530.19,0.00025205,2]
[336855993,1725215454278,-1978.29,0.00025205,2]
[336855994,1725215454296,-500.0,0.00025205,2]
[336855995,1725215454305,-500.0,0.00025205,2]
[336855996,1725215454315,-500.0,0.00025205,2]
[336855997,1725215454324,-3000.0,0.0002521,2]
[336855998,1725215454334,-3000.0,0.0002521,2]
[336855999,1725215454343,-3000.0,0.0002522,2]
[336856000,1725215454353,-3000.0,0.0002522,2]
[336856001,1725215454362,-1373.10270534,0.0002522,3]
[336856002,1725215454372,-1000.0,0.00025221,2]
[336856003,1725215454382,-3000.0,0.0002523,2]
[336856004,1725215454391,-3000.0,0.0002523,2]
[336856005,1725215454400,-3000.0,0.0002524,2]
[336856006,1725215454409,-3000.0,0.0002524,2]
[336856007,1725215454420,-500.0,0.00025249,2]
[336856008,1725215454430,-474.8107311,0.00025249,2]
[336856009,1725215454440,-151.0,0.0002525,7]
[336856010,1725215454450,-3000.0,0.0002525,2]
[336856011,1725215454459,-3000.0,0.0002525,2]
[336856012,1725215454468,-3000.0,0.0002526,2]
[336856013,1725215454478,-3000.0,0.0002526,2]
[336856014,1725215454487,-3000.0,0.0002527,2]
[336856015,1725215454496,-3000.0,0.0002527,2]
[336856016,1725215454507,-330.146762,0.0002527,7]
[336856017,1725215454517,-330.146762,0.0002527,7]
[336856018,1725215454526,-150.0,0.00025273,2]
[336856019,1725215454535,-3000.0,0.0002528,2]
[336856020,1725215454545,-3000.0,0.0002528,2]
[336856021,1725215454555,-3000.0,0.0002529,2]
[336856022,1725215454568,-3000.0,0.0002529,2]
[336856023,1725215454580,-1373.10270534,0.0002529,3]
[336856024,1725215454589,-150.112233,0.000253,9]
[336856025,1725215454599,-150.112233,0.000253,9]
[336856026,1725215454608,-150.112235,0.000253,6]
[336856027,1725215454617,-150.112233,0.000253,5]
[336856028,1725215454628,-3000.0,0.000253,2]
[336856029,1725215454639,-3000.0,0.000253,2]
[336856030,1725215454648,-3000.0,0.0002531,2]
[336856031,1725215454658,-3000.0,0.0002531,2]
[336856032,1725215454671,-3000.0,0.0002532,2]
[336856033,1725215454680,-3000.0,0.0002532,2]
[336856034,1725215454690,-3000.0,0.0002533,2]
[336856035,1725215454699,-3000.0,0.0002533,2]
[336856036,1725215454708,-3000.0,0.0002534,2]
[336856037,1725215454718,-3000.0,0.0002534,2]
[336856038,1725215454727,-3000.0,0.0002535,2]
[336856039,1725215454738,-3000.0,0.0002535,2]
[336856040,1725215454748,-522.0,0.00025356,2]
[336856041,1725215454759,-150.0,0.00025356,2]
[336856042,1725215454768,-3000.0,0.0002536,2]
[336856043,1725215454777,-3000.0,0.0002536,2]
[336856044,1725215454787,-3000.0,0.0002537,2]
[336856045,1725215454796,-3000.0,0.0002537,2]
[336856046,1725215454806,-1373.10270534,0.0002537,3]
[336856047,1725215454815,-3000.0,0.0002538,2]
[336856048,1725215454825,-3000.0,0.0002538,2]
[336856049,1725215454835,-3000.0,0.0002539,2]
[336856050,1725215454845,-3000.0,0.0002539,2]
[336856051,1725215454856,-1532.27042263,0.00025396,7]
[336856052,1725215454865,-1541.94533448,0.00025396,7]
[336856053,1725215454874,-150.112233,0.000254,5]
[336856054,1725215454884,-150.112233,0.000254,10]
[336856055,1725215454894,-150.112233,0.000254,8]
[336856056,1725215454903,-150.112233,0.000254,9]
[336856057,1725215454912,-3000.0,0.000254,2]
[336856058,1725215454922,-3000.0,0.000254,2]
[336856059,1725215454932,-3000.0,0.0002541,2]
[336856060,1725215454941,-3000.0,0.0002541,2]
[336856061,1725215454950,-3000.0,0.0002542,2]
[336856062,1725215454959,-3000.0,0.0002542,2]
[336856063,1725215454968,-3000.0,0.0002543,2]
[336856064,1725215454978,-3000.0,0.0002543,2]
[336856065,1725215454987,-3000.0,0.0002544,2]
[336856066,1725215454996,-3000.0,0.0002544,2]
[336856067,1725215455006,-3000.0,0.0002545,2]
[336856068,1725215455016,-3000.0,0.0002545,2]
[336856069,1725215455025,-3000.0,0.0002546,2]
[336856070,1725215455035,-3000.0,0.0002546,2]
[336856071,1725215455044,-3000.0,0.0002547,2]
[336856072,1725215455054,-3000.0,0.0002547,2]
[336856073,1725215455064,-500.0,0.00025479,2]
[336856074,1725215455073,-500.0,0.00025479,2]
[336856075,1725215455083,-500.0,0.00025479,2]
[336856076,1725215455092,-466.40728681,0.00025479,2]
[336856077,1725215455102,-500.0,0.00025479,2]
[336856078,1725215455113,-500.0,0.00025479,2]
[336856079,1725215455122,-500.0,0.00025479,2]
[336856080,1725215455132,-510.78879818,0.00025479,2]
[336856081,1725215455143,-500.0,0.00025479,2]
[336856082,1725215455153,-500.0,0.00025479,2]
[336856083,1725215455162,-500.0,0.00025479,2]
[336856084,1725215455174,-500.0,0.00025479,2]
[336856085,1725215455183,-500.0,0.00025479,2]
[336856086,1725215455192,-869.91,0.00025479,2]
[336856087,1725215455202,-504.17445889,0.00025479,2]
[336856088,1725215455212,-500.0,0.00025479,2]
[336856089,1725215455221,-500.0,0.00025479,2]
[336856090,1725215455231,-500.0,0.00025479,2]
[336856091,1725215455240,-500.0,0.00025479,2]
[336856092,1725215455249,-500.0,0.00025479,2]
[336856093,1725215455259,-162.50728671,0.00025479,2]
[336856094,1725215455268,-500.0,0.00025479,2]
[336856095,1725215455278,-500.0,0.00025479,2]
[336856096,1725215455287,-478.86231771,0.00025479,2]
[336856097,1725215455296,-153.635653,0.00025479,7]
[336856098,1725215455305,-500.0,0.00025479,2]
[336856099,1725215455315,-503.75714057,0.00025479,2]
[336856100,1725215455325,-500.0,0.00025479,2]
[336856101,1725215455335,-500.0,0.00025479,2]
[336856102,1725215455344,-500.0,0.00025479,2]
[336856103,1725215455354,-500.0,0.00025479,2]
[336856104,1725215455363,-500.0,0.00025479,2]
[336856105,1725215455373,-500.0,0.00025479,2]
[336856106,1725215455382,-646.6,0.00025479,2]
[336856107,1725215455392,-500.0,0.00025479,2]
[336856108,1725215455401,-784.76,0.00025479,2]
[336856109,1725215455412,-500.0,0.00025479,2]
[336856110,1725215455423,-687.81,0.00025479,2]
[336856111,1725215455432,-500.0,0.00025479,2]
[336856112,1725215455441,-500.0,0.00025479,2]
[336856113,1725215455450,-952.17,0.00025479,2]
[336856114,1725215455459,-500.0,0.00025479,2]
[336856115,1725215455468,-500.0,0.00025479,2]
[336856116,1725215455478,-709.86,0.00025479,2]
[336856117,1725215455487,-500.0,0.00025479,2]
[336856118,1725215455496,-500.0,0.00025479,2]
[336856119,1725215455505,-752.49,0.00025479,2]
[336856120,1725215455514,-1121.6,0.00025479,2]
[336856121,1725215455524,-151.0,0.00025479,7]
[336856122,1725215455534,-151.0,0.00025479,7]
[336856123,1725215455544,-654.76,0.00025479,2]
[336856124,1725215455558,-500.0,0.00025479,2]
[336856125,1725215455567,-500.0,0.00025479,2]
[336856126,1725215455576,-500.0,0.00025479,2]
[336856127,1725215455585,-500.0,0.00025479,2]
[336856128,1725215455596,-500.0,0.00025479,2]
[336856129,1725215455606,-500.0,0.00025479,2]